fUST/lending_fUST_20240508
["ID","MTS","AMOUNT","RATE_DAILY","PERIOD"]
[326566877,1715111433973,-500.0,0.00016429,2]
[326566878,1715111433983,-1194.37,0.00016429,2]
[326566879,1715111433993,-2149.47,0.00016429,2]
[326566880,1715111434002,-3865.62,0.00016429,2]
[326566881,1715111434012,-500.0,0.00016429,2]
[326566882,1715111434021,-500.0,0.00016429,2]
[326566883,1715111434031,-500.0,0.00016429,2]
[326566884,1715111434040,-3730.93,0.00016429,2]
[326566885,1715111434049,-4163.43,0.00016429,2]
[326566886,1715111434059,-1042.72,0.00016429,2]
[326566887,1715111434068,-3636.23,0.00016429,2]
[326566888,1715111434077,-500.0,0.00016429,2]
[326566889,1715111434086,-500.0,0.0001643,2]
[326566890,1715111434096,-500.0,0.0001643,2]
[326566891,1715111434105,-500.0,0.0001643,2]
[326566892,1715111434114,-500.0,0.0001643,2]
[326566893,1715111434124,-500.0,0.0001643,2]
[326566894,1715111434133,-500.0,0.0001643,2]
[326566895,1715111434142,-500.0,0.0001643,2]
[326566896,1715111434151,-500.0,0.0001643,2]
[326566897,1715111434160,-500.0,0.0001643,2]
[326566898,1715111434170,-500.0,0.0001643,2]
[326566899,1715111434179,-567.42,0.0001643,2]
[326566900,1715111434189,-500.0,0.0001643,2]
[326566901,1715111434198,-500.0,0.0001643,2]
[326566902,1715111434207,-500.0,0.0001643,2]
[326566903,1715111434216,-500.0,0.0001643,2]
[326566904,1715111434226,-465.05662984,0.0001643,2]
[326566905,1715111434234,-772.21,0.0001643,2]
[326566906,1715111434245,-202.01826515,0.0001643,2]
[326566907,1715111434254,-1472.14,0.0001643,2]
[326566908,1715111434264,-500.0,0.0001643,2]
[326566909,1715111434276,-500.0,0.0001643,2]
[326566910,1715111434286,-500.0,0.0001643,2]
[326566911,1715111434295,-500.0,0.0001643,2]
[326566912,1715111434304,-500.0,0.0001643,2]
[326566913,1715111434315,-552.16087072,0.0001643,2]
[326566914,1715111434325,-500.0,0.0001643,2]
[326566915,1715111434334,-500.0,0.0001643,2]
[326566916,1715111434345,-1089.03,0.0001643,2]
[326566917,1715111434354,-500.0,0.0001643,2]
[326566918,1715111434363,-1525.1,0.0001643,2]
[326566919,1715111434372,-500.0,0.0001643,2]
[326566920,1715111434382,-500.0,0.0001643,2]
[326566921,1715111434391,-500.0,0.0001643,2]
[326566922,1715111434400,-500.0,0.0001643,2]
[326566923,1715111434410,-1619.55,0.0001643,2]
[326566924,1715111434419,-500.0,0.0001643,2]
[326566925,1715111434429,-500.0,0.0001643,2]
[326566926,1715111434438,-500.0,0.0001643,2]
[326566927,1715111434448,-500.0,0.0001643,2]
[326566928,1715111434457,-500.0,0.0001643,2]
[326566929,1715111434466,-500.0,0.0001643,2]
[326566930,1715111434476,-503.94595464,0.0001643,2]
[326566931,1715111434485,-500.0,0.0001643,2]
[326566932,1715111434495,-570.43,0.0001643,2]
[326566933,1715111434505,-500.0,0.0001643,2]
[326566934,1715111434514,-500.0,0.0001643,2]
[326566935,1715111434524,-3603.49,0.0001643,2]
[326566936,1715111434533,-607.58,0.0001643,2]
[326566937,1715111434543,-525.77739274,0.0001643,2]
[326566938,1715111434552,-500.0,0.0001643,2]
[326566939,1715111434562,-500.0,0.0001643,2]
[326566940,1715111434571,-500.0,0.0001643,2]
[326566941,1715111434581,-500.0,0.0001643,2]
[326566942,1715111434590,-500.0,0.0001643,2]
[326566943,1715111434600,-500.0,0.0001643,2]
[326566944,1715111434609,-3638.81,0.0001643,2]
[326566945,1715111434619,-500.0,0.0001643,2]
[326566946,1715111434628,-500.0,0.0001643,2]
[326566947,1715111434638,-500.0,0.0001643,2]
[326566948,1715111434647,-500.0,0.0001643,2]
[326566949,1715111434657,-500.0,0.0001643,2]
[326566950,1715111434667,-559.95,0.0001643,2]
[326566951,1715111434679,-3318.44,0.0001643,2]
[326566952,1715111434689,-500.0,0.0001643,2]
[326566953,1715111434699,-584.88,0.0001643,2]
[326566954,1715111434708,-535.05813179,0.0001643,2]
[326566955,1715111434718,-272.82435014,0.0001643,2]
[326566956,1715111434728,-500.0,0.0001643,2]
[326566957,1715111434738,-500.0,0.0001643,2]
[326566958,1715111434748,-869.87,0.0001643,2]
[326566959,1715111434757,-500.0,0.0001643,2]
[326566960,1715111434767,-500.0,0.0001643,2]
[326566961,1715111434776,-1184.88,0.0001643,2]
[326566962,1715111434785,-4783.3,0.0001643,2]
[326566963,1715111434795,-1641.03,0.0001643,2]
[326566964,1715111434805,-500.0,0.0001643,2]
[326566965,1715111434814,-20674.6,0.0001643,2]
[326566966,1715111434824,-781.72,0.0001643,2]
[326566967,1715111434833,-500.0,0.0001643,2]
[326566968,1715111434843,-1025.88,0.0001643,2]
[326566969,1715111434853,-500.0,0.0001643,2]
[326566970,1715111434862,-500.0,0.0001643,2]
[326566971,1715111434872,-500.0,0.0001643,2]
[326566972,1715111434882,-936.77,0.0001643,2]
[326566973,1715111434891,-500.0,0.0001643,2]
[326566974,1715111434901,-500.0,0.0001643,2]
[326566975,1715111434910,-481.88595248,0.0001643,2]
[326566976,1715111434920,-500.0,0.0001643,2]
[326566977,1715111434930,-500.0,0.0001643,2]
[326566978,1715111434939,-500.0,0.0001643,2]
[326566979,1715111434949,-500.0,0.0001643,2]
[326566980,1715111434960,-500.0,0.0001643,2]
[326566981,1715111434969,-5004.78468499,0.0001643,2]
[326566982,1715111434983,-590.07531501,0.0001643,2]
[326566983,1715111434994,-500.0,0.0001643,2]
[326566984,1715111435004,-295.50115857,0.0001643,2]
[326566985,1715111435018,-204.49884143,0.0001643,2]
[326566986,1715111435028,-500.0,0.0001643,2]
[326566987,1715111435037,-313.857909,0.00016431,2]
[326567045,1715111441006,-171.760518,0.0001589,2]
[326567048,1715111441016,-500.0,0.00016428,2]
[326567053,1715111441027,-500.0,0.00016429,2]
[326567056,1715111441037,-500.0,0.00016429,2]
[326567060,1715111441047,-1525.06,0.00016429,2]
[326567063,1715111441057,-500.0,0.0001643,2]
[326567065,1715111441067,-500.0,0.0001643,2]
[326567068,1715111441077,-186.142091,0.00016431,2]
[326567071,1715111441087,-500.0,0.00016431,2]
[326567073,1715111441096,-1075.69,0.00016431,2]
[326567075,1715111441106,-500.0,0.00016431,2]
[326567078,1715111441116,-500.0,0.00016431,2]
[326567080,1715111441126,-1593.4,0.00016431,2]
[326567083,1715111441137,-735.03,0.00016431,2]
[326567086,1715111441146,-732.22,0.00016431,2]
[326567088,1715111441156,-500.0,0.00016431,2]
[326567090,1715111441165,-500.0,0.00016431,2]
[326567093,1715111441175,-500.0,0.00016431,2]
[326567095,1715111441185,-500.0,0.00016431,2]
[326567098,1715111441195,-500.0,0.00016431,2]
[326567100,1715111441204,-500.0,0.00016431,2]
[326567102,1715111441214,-500.0,0.00016431,2]
[326567104,1715111441223,-500.0,0.00016431,2]
[326567105,1715111441233,-587.53,0.00016431,2]
[326567106,1715111441242,-500.0,0.00016431,2]
[326567107,1715111441252,-500.0,0.00016431,2]
[326567108,1715111441262,-500.0,0.00016431,2]
[326567109,1715111441277,-501.71709557,0.00016431,2]
[326567110,1715111441287,-500.0,0.00016431,2]
[326567111,1715111441296,-500.0,0.00016431,2]
[326567112,1715111441306,-500.0,0.00016432,2]
[326567113,1715111441317,-273.3300509,0.000165,2]
[326567114,1715111441327,-55555.0,0.00016604,2]
[326567115,1715111441337,-254.077973,0.00016624,2]
[326567116,1715111441346,-500.0,0.00016702,2]
[326567117,1715111441358,-10380.2983366,0.00016703,2]
[326567118,1715111441368,-167.85937447,0.00016703,5]
[326567119,1715111441378,-5190.1491683,0.00016703,2]
[326567120,1715111441387,-150600.0,0.00016703,2]
[326567121,1715111441397,-500.0,0.00016703,2]
[326567122,1715111441406,-500.0,0.00016703,2]
[326567123,1715111441416,-888.28,0.00016703,2]
[326567124,1715111441425,-500.0,0.00016703,2]
[326567125,1715111441435,-500.0,0.00016703,2]
[326567126,1715111441445,-151.0,0.00016703,2]
[326567127,1715111441454,-151.0,0.00016703,2]
[326567128,1715111441464,-500.0,0.00016703,2]
[326567129,1715111441474,-500.0,0.00016703,2]
[326567130,1715111441484,-757.91,0.00016703,2]
[326567131,1715111441493,-151.0,0.00016703,2]
[326567132,1715111441503,-5842.03,0.00016703,2]
[326567133,1715111441513,-500.0,0.00016703,2]
[326567134,1715111441523,-644.75,0.00016703,2]
[326567135,1715111441533,-500.0,0.00016703,2]
[326567136,1715111441542,-754.65,0.00016703,2]
[326567137,1715111441552,-1475.85,0.00016703,2]
[326567138,1715111441561,-851.06,0.00016703,2]
[326567139,1715111441571,-2336.84,0.00016703,2]
[326567140,1715111441581,-1768.6,0.00016703,2]
[326567141,1715111441590,-3192.56,0.00016703,2]
[326567142,1715111441601,-500.0,0.00016703,2]
[326567143,1715111441610,-248.793588,0.00016703,2]
[326567144,1715111441620,-1184.88,0.00016703,2]
[326567145,1715111441629,-1184.88,0.00016703,2]
[326567146,1715111441639,-3507.68,0.00016703,2]
[326567147,1715111441649,-766.31,0.00016703,2]
[326567148,1715111441658,-500.0,0.00016703,2]
[326567149,1715111441667,-151.0,0.00016703,2]
[326567150,1715111441679,-151.0,0.00016703,2]
[326567151,1715111441689,-500.0,0.00016703,2]
[326567152,1715111441699,-1194.37,0.00016703,2]
[326567153,1715111441708,-151.0,0.00016703,2]
[326567154,1715111441722,-151.0,0.00016703,2]
[326567155,1715111441736,-2149.47,0.00016703,2]
[326567156,1715111441750,-3865.62,0.00016703,2]
[326567157,1715111441763,-500.0,0.00016703,2]
[326567158,1715111441775,-500.0,0.00016703,2]
[326567159,1715111441786,-500.0,0.00016703,2]
[326567160,1715111441798,-3730.93,0.00016703,2]
[326567161,1715111441810,-4163.43,0.00016703,2]
[326567162,1715111441822,-1042.72,0.00016703,2]
[326567163,1715111441834,-3636.23,0.00016703,2]
[326567164,1715111441846,-500.0,0.00016703,2]
[326567165,1715111441858,-1525.06,0.00016703,2]
[326567166,1715111441870,-500.0,0.00016704,2]
[326567167,1715111441883,-500.0,0.00016704,2]
[326567168,1715111441895,-500.0,0.00016704,2]
[326567169,1715111441907,-500.0,0.00016704,2]
[326567170,1715111441920,-500.0,0.00016704,2]
[326567171,1715111441934,-500.0,0.00016704,2]
[326567172,1715111441946,-500.0,0.00016704,2]
[326567173,1715111441959,-500.0,0.00016704,2]
[326567174,1715111441971,-567.42,0.00016704,2]
[326567175,1715111441983,-500.0,0.00016704,2]
[326567176,1715111441995,-500.0,0.00016704,2]
[326567177,1715111442007,-500.0,0.00016704,2]
[326567178,1715111442019,-500.0,0.00016704,2]
[326567179,1715111442032,-772.21,0.00016704,2]
[326567180,1715111442044,-500.0,0.00016704,2]
[326567181,1715111442056,-500.0,0.00016704,2]
[326567182,1715111442068,-500.0,0.00016704,2]
[326567183,1715111442079,-500.0,0.00016704,2]
[326567184,1715111442089,-500.0,0.00016704,2]
[326567185,1715111442100,-500.0,0.00016704,2]
[326567186,1715111442111,-500.0,0.00016704,2]
[326567187,1715111442123,-500.0,0.00016704,2]
[326567188,1715111442134,-151.0,0.00016704,2]
[326567189,1715111442146,-151.0,0.00016704,2]
[326567190,1715111442159,-500.0,0.00016704,2]
[326567191,1715111442170,-1619.55,0.00016704,2]
[326567192,1715111442183,-151.0,0.00016704,2]
[326567193,1715111442194,-500.0,0.00016704,2]
[326567194,1715111442207,-151.0,0.00016704,2]
[326567195,1715111442220,-500.0,0.00016704,2]
[326567196,1715111442233,-321.82100988,0.00016704,2]
[326567197,1715111442246,-500.0,0.00016704,2]
[326567198,1715111442258,-500.0,0.00016704,2]
[326567199,1715111442272,-500.0,0.00016704,2]
[326567200,1715111442283,-500.0,0.00016704,2]
[326567201,1715111442293,-151.0,0.00016704,2]
[326567202,1715111442304,-151.0,0.00016704,2]
[326567203,1715111442315,-570.43,0.00016704,2]
[326567204,1715111442326,-151.0,0.00016704,2]
[326567205,1715111442338,-151.0,0.00016704,2]
[326567206,1715111442353,-3453.62102719,0.00016704,2]
[326567207,1715111442371,-149.86897281,0.00016704,2]
[326567208,1715111442383,-607.58,0.00016704,2]
[326567209,1715111442396,-239.01881775,0.00016704,2]
[326567211,1715111443072,-397.36335037,0.00016429,2]
[326567213,1715111443083,-500.0,0.0001643,2]
[326567215,1715111443094,-260.98118225,0.00016704,2]
[326567217,1715111443105,-500.0,0.00016704,2]
[326567219,1715111443116,-500.0,0.00016704,2]
[326567221,1715111443127,-500.0,0.00016704,2]
[326567223,1715111443138,-477.9057141,0.00016704,2]
[326567226,1715111443152,-22.0942859,0.00016704,2]
[326567228,1715111443163,-279.45339258,0.00016704,2]
[326567534,1715111446383,-500.0,0.00016429,2]
[326567535,1715111446392,-500.0,0.00016703,2]
[326567536,1715111446402,-30.42666095,0.00016704,2]
[326567537,1715111446411,-3638.81,0.00016704,2]
[326567538,1715111446421,-500.0,0.00016704,2]
[326567539,1715111446430,-151.0,0.00016704,2]
[326567540,1715111446440,-151.0,0.00016704,2]
[326567541,1715111446642,-151.0,0.00016704,2]
[326567542,1715111446663,-500.0,0.00016704,2]
[326567543,1715111446677,-500.0,0.00016704,2]
[326567544,1715111446687,-151.0,0.00016704,2]
[326567545,1715111446696,-151.0,0.00016704,2]
[326567546,1715111446706,-151.0,0.00016704,2]
[326567547,1715111446715,-559.95,0.00016704,2]
[326567548,1715111446724,-3318.44,0.00016704,2]
[326567549,1715111446733,-500.0,0.00016704,2]
[326567551,1715111446743,-584.88,0.00016704,2]
[326567552,1715111446754,-405.28959687,0.00016704,2]
[326567635,1715111448011,-500.0,0.00016429,2]
[326567637,1715111448022,-1596.29,0.0001643,2]
[326567640,1715111448032,-991.46263386,0.00016703,2]
[326567642,1715111448042,-94.71040313,0.00016704,2]
[326567644,1715111448052,-500.0,0.00016704,2]
[326567646,1715111448061,-869.87,0.00016704,2]
[326567648,1715111448071,-162.15025934,0.00016704,2]
[326567649,1715111448080,-1184.88,0.00016704,2]
[326567651,1715111448090,-4783.3,0.00016704,2]
[326567653,1715111448099,-1641.03,0.00016704,2]
[326567656,1715111448108,-500.0,0.00016704,2]
[326567657,1715111448118,-500.0,0.00016704,2]
[326567659,1715111448127,-2267.29772626,0.00016704,2]
[326567863,1715112007889,300.0,9.999e-05,2]
[326567868,1715112457547,300.0,9.999e-05,2]
[326567952,1715112632627,-300.0,0.00015889,2]
[326567954,1715112632637,-198.442384,0.0001589,2]
[326567956,1715112632647,-991.46263386,0.00016,2]
[326567958,1715112632656,-7948.04730527,0.00016,2]
[326567960,1715112632666,-254.077977,0.00016023,2]
[326567962,1715112632678,-194.28143752,0.00016327,2]
[326567964,1715112632688,-243.94942887,0.00016327,2]
[326567965,1715112632697,-154.76784823,0.00016425,2]
[326567967,1715112632708,-500.0,0.00016426,2]
[326567969,1715112632719,-500.0,0.00016426,2]
[326567971,1715112632728,-500.0,0.00016426,2]
[326567973,1715112632738,-1194.46,0.00016426,2]
[326567975,1715112632747,-500.0,0.00016426,2]
[326567977,1715112632758,-3989.95,0.00016426,2]
[326567979,1715112632768,-500.0,0.00016427,2]
[326567981,1715112632777,-500.0,0.00016427,2]
[326567983,1715112632787,-500.0,0.00016427,2]
[326567984,1715112632796,-500.0,0.00016427,2]
[326567986,1715112632806,-500.0,0.00016427,2]
[326567988,1715112632816,-500.0,0.00016427,2]
[326567990,1715112632825,-500.0,0.00016427,2]
[326567992,1715112632836,-886.69,0.00016427,2]
[326567993,1715112632845,-1000.0,0.00016427,2]
[326567994,1715112632856,-500.0,0.00016427,2]
[326567995,1715112632866,-500.0,0.00016427,2]
[326567996,1715112632876,-500.0,0.00016427,2]
[326567997,1715112632886,-500.0,0.00016427,2]
[326567998,1715112632896,-500.0,0.00016427,2]
[326567999,1715112632906,-500.0,0.00016427,2]
[326568000,1715112632916,-754.66,0.00016427,2]
[326568001,1715112632926,-500.0,0.00016427,2]
[326568002,1715112632937,-500.0,0.00016427,2]
[326568003,1715112632947,-500.0,0.00016427,2]
[326568004,1715112632956,-2059.91,0.00016427,2]
[326568005,1715112632967,-500.0,0.00016427,2]
[326568006,1715112632977,-500.0,0.00016427,2]
[326568007,1715112632987,-500.0,0.00016427,2]
[326568008,1715112632997,-999.27,0.00016427,2]
[326568009,1715112633008,-500.0,0.00016427,2]
[326568010,1715112633018,-1525.06,0.00016427,2]
[326568011,1715112633028,-500.0,0.00016427,2]
[326568012,1715112633038,-500.0,0.00016427,2]
[326568013,1715112633047,-500.0,0.00016427,2]
[326568014,1715112633059,-500.0,0.00016427,2]
[326568015,1715112633068,-500.0,0.00016427,2]
[326568016,1715112633078,-740.03,0.00016427,2]
[326568017,1715112633088,-500.0,0.00016427,2]
[326568018,1715112633101,-500.0,0.00016427,2]
[326568019,1715112633111,-500.0,0.00016427,2]
[326568020,1715112633121,-593.12,0.00016427,2]
[326568021,1715112633131,-500.0,0.00016427,2]
[326568022,1715112633141,-500.0,0.00016427,2]
[326568023,1715112633151,-500.0,0.00016427,2]
[326568024,1715112633160,-2406.29347159,0.00016427,2]
[326568488,1715112639134,-3434.33652841,0.00016427,2]
[326568490,1715112639145,-500.0,0.00016427,2]
[326568492,1715112639156,-643.6,0.00016427,2]
[326568494,1715112639166,-500.0,0.00016427,2]
[326568496,1715112639176,-500.0,0.00016427,2]
[326568498,1715112639185,-500.0,0.00016427,2]
[326568499,1715112639195,-500.0,0.00016427,2]
[326568501,1715112639205,-500.0,0.00016427,2]
[326568503,1715112639214,-500.0,0.00016427,2]
[326568505,1715112639224,-757.91,0.00016427,2]
[326568507,1715112639233,-500.0,0.00016427,2]
[326568509,1715112639244,-983.13,0.00016427,2]
[326568511,1715112639254,-851.0,0.00016427,2]
[326568512,1715112639263,-280.80355073,0.00016427,2]
[326568514,1715112639273,-766.25,0.00016427,2]
[326568516,1715112639283,-500.0,0.00016427,2]
[326568518,1715112639293,-1552.07,0.00016427,2]
[326568520,1715112639303,-3059.54,0.00016427,2]
[326568522,1715112639313,-500.0,0.00016427,2]
[326568523,1715112639323,-500.0,0.00016427,2]
[326568526,1715112639333,-500.0,0.00016427,2]
[326568527,1715112639343,-500.0,0.00016427,2]
[326568529,1715112639353,-1768.6,0.00016427,2]
[326568531,1715112639363,-3361.52,0.00016427,2]
[326568533,1715112639373,-3704.56,0.00016427,2]
[326568535,1715112639383,-500.0,0.00016427,2]
[326568537,1715112639392,-500.0,0.00016427,2]
[326568539,1715112639402,-268.44552716,0.00016427,2]
[326568541,1715112639412,-500.0,0.00016427,2]
[326568542,1715112639422,-1036.68,0.00016427,2]
[326568544,1715112639432,-1089.03,0.00016427,2]
[326568546,1715112639442,-500.0,0.00016427,2]
[326568548,1715112639452,-500.0,0.00016427,2]
[326568550,1715112639462,-570.46,0.00016427,2]
[326568552,1715112639471,-500.0,0.00016427,2]
[326568554,1715112639481,-3575.47,0.00016427,2]
[326568556,1715112639492,-500.0,0.00016427,2]
[326568558,1715112639503,-3484.72,0.00016427,2]
[326568560,1715112639513,-500.0,0.00016427,2]
[326568562,1715112639523,-321.82100988,0.00016427,2]
[326568564,1715112639533,-500.0,0.00016427,2]
[326568566,1715112639543,-500.0,0.00016427,2]
[326568568,1715112639554,-1472.97,0.00016427,2]
[326568570,1715112639564,-2316.86,0.00016427,2]
[326568572,1715112639575,-500.0,0.00016428,2]
[326568574,1715112639585,-536.14,0.00016428,2]
[326568576,1715112639595,-749.14,0.00016428,2]
[326568578,1715112639605,-1472.07,0.00016428,2]
[326568580,1715112639615,-500.0,0.00016428,2]
[326568582,1715112639626,-500.0,0.00016428,2]
[326568584,1715112639636,-500.0,0.00016428,2]
[326568586,1715112639647,-556.95,0.00016428,2]
[326568588,1715112639657,-3447.1,0.00016428,2]
[326568590,1715112639667,-500.0,0.00016428,2]
[326568592,1715112639678,-500.0,0.00016428,2]
[326568594,1715112639693,-500.0,0.00016428,2]
[326568596,1715112639702,-3460.36,0.00016428,2]
[326568597,1715112639712,-500.0,0.00016428,2]
[326568599,1715112639723,-513.29,0.00016428,2]
[326568601,1715112639733,-500.0,0.00016428,2]
[326568603,1715112639743,-797.38,0.00016428,2]
[326568605,1715112639752,-1504.28,0.00016428,2]
[326568607,1715112639763,-500.0,0.00016428,2]
[326568609,1715112639773,-19718.69,0.00016428,2]
[326568611,1715112639784,-500.0,0.00016428,2]
[326568613,1715112639794,-3180.18,0.00016428,2]
[326568615,1715112639805,-4384.69,0.00016428,2]
[326568617,1715112639814,-500.0,0.00016428,2]
[326568619,1715112639824,-1036.68,0.00016428,2]
[326568621,1715112639834,-1036.68,0.00016428,2]
[326568623,1715112639844,-1596.17,0.00016428,2]
[326568625,1715112639853,-500.0,0.00016428,2]
[326568627,1715112639863,-735.03,0.00016428,2]
[326568629,1715112639873,-897.74,0.00016428,2]
[326568631,1715112639884,-500.0,0.00016428,2]
[326568633,1715112639895,-5361.74,0.00016428,2]
[326568635,1715112639905,-500.0,0.00016428,2]
[326568637,1715112639914,-380.57790128,0.00016429,2]
[326568639,1715112639924,-500.0,0.00016429,2]
[326568641,1715112639933,-500.0,0.00016429,2]
[326568643,1715112639943,-500.0,0.00016429,2]
[326568645,1715112639954,-500.0,0.00016429,2]
[326568647,1715112639964,-764.06,0.00016429,2]
[326568649,1715112639974,-500.0,0.00016429,2]
[326568651,1715112639985,-1120.61,0.00016429,2]
[326568653,1715112639996,-500.0,0.00016429,2]
[326568655,1715112640006,-500.0,0.00016429,2]
[326568657,1715112640015,-500.0,0.00016429,2]
[326568659,1715112640025,-500.0,0.00016429,2]
[326568661,1715112640035,-500.0,0.00016429,2]
[326568662,1715112640045,-500.0,0.00016429,2]
[326568664,1715112640054,-500.0,0.00016429,2]
[326568666,1715112640064,-500.0,0.00016429,2]
[326568668,1715112640074,-500.0,0.00016429,2]
[326568670,1715112640084,-587.53,0.00016429,2]
[326568672,1715112640094,-500.0,0.00016429,2]
[326568674,1715112640110,-500.0,0.00016429,2]
[326568676,1715112640120,-500.0,0.00016429,2]
[326568678,1715112640130,-501.71709557,0.00016429,2]
[326568680,1715112640140,-500.0,0.00016429,2]
[326568682,1715112640150,-500.0,0.00016429,2]
[326568684,1715112640160,-500.0,0.0001643,2]
[326568686,1715112640170,-273.3300509,0.000165,2]
[326568688,1715112640180,-306.0,0.000165,2]
[326568690,1715112640190,-306.0,0.000165,2]
[326568692,1715112640200,-549.76477207,0.000167,2]
[326568694,1715112640210,-1036.68,0.000167,2]
[326568696,1715112640219,-1194.46,0.000167,2]
[326568698,1715112640230,-500.0,0.000167,2]
[326568700,1715112640241,-3989.95,0.000167,2]
[326568702,1715112640252,-500.0,0.00016701,2]
[326568704,1715112640262,-500.0,0.00016701,2]
[326568706,1715112640271,-886.69,0.00016701,2]
[326568708,1715112640281,-500.0,0.00016701,2]
[326568710,1715112640291,-500.0,0.00016701,2]
[326568712,1715112640301,-500.0,0.00016701,2]
[326568714,1715112640311,-500.0,0.00016701,2]
[326568716,1715112640321,-500.0,0.00016701,2]
[326568718,1715112640331,-500.0,0.00016701,2]
[326568720,1715112640341,-754.66,0.00016701,2]
[326568722,1715112640350,-500.0,0.00016701,2]
[326568724,1715112640360,-500.0,0.00016701,2]
[326568726,1715112640370,-500.0,0.00016701,2]
[326568728,1715112640379,-2059.91,0.00016701,2]
[326568730,1715112640389,-500.0,0.00016701,2]
[326568732,1715112640400,-175.5166854,0.00016701,2]
[326568734,1715112640410,-999.27,0.00016701,2]
[326568736,1715112640420,-500.0,0.00016701,2]
[326568738,1715112640430,-1525.06,0.00016701,2]
[326568740,1715112640440,-500.0,0.00016701,2]
[326568742,1715112640450,-500.0,0.00016701,2]
[326568744,1715112640460,-500.0,0.00016701,2]
[326568746,1715112640470,-500.0,0.00016701,2]
[326568748,1715112640480,-500.0,0.00016701,2]
[326568750,1715112640489,-740.03,0.00016701,2]
[326568752,1715112640502,-500.0,0.00016701,2]
[326568753,1715112640511,-593.12,0.00016701,2]
[326568756,1715112640521,-500.0,0.00016701,2]
[326568757,1715112640531,-500.0,0.00016701,2]
[326568759,1715112640541,-500.0,0.00016701,2]
[326568761,1715112640550,-5840.63,0.00016701,2]
[326568763,1715112640561,-500.0,0.00016701,2]
[326568765,1715112640570,-643.6,0.00016701,2]
[326568767,1715112640580,-500.0,0.00016701,2]
[326568769,1715112640589,-500.0,0.00016701,2]
[326568771,1715112640599,-500.0,0.00016701,2]
[326568773,1715112640608,-500.0,0.00016701,2]
[326568775,1715112640618,-500.0,0.00016701,2]
[326568777,1715112640628,-757.91,0.00016701,2]
[326568779,1715112640637,-474.06537712,0.00016701,2]
[326568781,1715112640646,-500.0,0.00016701,2]
[326568783,1715112640656,-983.13,0.00016701,2]
[326568785,1715112640666,-851.0,0.00016701,2]
[326568787,1715112640676,-766.25,0.00016701,2]
[326568789,1715112640689,-500.0,0.00016701,2]
[326568791,1715112640700,-1552.07,0.00016701,2]
[326568793,1715112640710,-3059.54,0.00016701,2]
[326568795,1715112640719,-500.0,0.00016701,2]
[326568797,1715112640730,-500.0,0.00016701,2]
[326568799,1715112640740,-500.0,0.00016701,2]
[326568801,1715112640751,-500.0,0.00016701,2]
[326568803,1715112640763,-1768.6,0.00016701,2]
[326568805,1715112640773,-3361.52,0.00016701,2]
[326568807,1715112640783,-3704.56,0.00016701,2]
[326568809,1715112640793,-500.0,0.00016701,2]